Cogmind - Beta 14 @@@ ROGUE MODE // 2024.10.13 @ 14:05:23 Player: Plexion Result: Destroyed by B0-WXZ(h) with Bolt Gun Performance ------------- Evolutions (2) 1000 Regions Visited (10) 2000 Robots Destroyed (209) 1045 Value Destroyed (6579) 6579 Prototype IDs (30) 600 Alien Tech Used (0) 0 Bonus (346) 346 TOTAL SCORE: 11570 Bonus ------- High Alert Combat Kills 109 Follower Combat Kills 117 Aligned with FarCom 300 Friendly Fire -180 Cogmind --------- Core Integrity 0/550 Matter 39/300 Energy 77/100 System Corruption 5% Temperature Cool (79) Movement Core (1100) Ox21 Location -8/Scraptown Parts ------- > --- POWER (1) -------- (None) > --- PROPULSION (3) --- (None) > --- UTILITY (4) ------ High-capacity Storage Unit Makeshift Light Armor Plating > --- WEAPON (3) ------- Siege Cannon > --- INVENTORY (20) --- Overtuned Treads Improved Heat Sink High-capacity Matter Pod (200) High-capacity Matter Pod (200) 0b10 Alert Chip Weapon Cycler Tractor Beam Beamcaster Enhanced Autogun Heavy Battle Rifle Mini Grenade Launcher Plasma Cutter CPS Tube (1) Peak State ------------ > --- POWER ------------ Hybrid Fission Core > --- PROPULSION ------- Tri-treads > --- UTILITY ---------- High-capacity Storage Unit Weapon Cycler Makeshift Medium Armor Plating Makeshift Medium Armor Plating > --- WEAPON ----------- AWS/Autocannon > --- INVENTORY -------- Armored Treads Flying Fortress v7 Seismic Detector 0b10 Alert Chip Tractor Beam EM Pulse Cannon Improved Assault Rifle Enhanced Autogun Siege Cannon Mini Grenade Launcher Mini Grenade Launcher Plasma Cutter CPS Tube [Rating: 76] Favorites ----------- Power Cooled Ion Engine Engine Cooled Ion Engine Power Core Light Nuclear Core Propulsion Light Treads Treads Light Treads Wheel Compact Wheel Flight Unit Improved Flight Unit Utility Hardened Medium Armor Plating Device Seismic Detector Storage High-capacity Storage Unit Processor Improved Targeting Computer Protection Hardened Medium Armor Plating Weapon Improved Assault Rifle Energy Gun Beamcaster Energy Cannon EM Pulse Cannon Ballistic Gun Improved Assault Rifle Ballistic Cannon Siege Cannon Launcher Mini Grenade Launcher Special Weapon Plasma Cutter Impact Weapon Heavy Mace Build | -11 -10 -10 -9 -9 -9 -8 -8 -8 -8 -8 ------- Run | Yrd Mat Min Mat Min Exi Min Mat Sto Rec Scr Slots Evolved 4 | . . . 2 . . . 2 . . . Power . | . . . . . . . . . . . Propulsion 1 | . . . 1 . . . . . . . Utility 2 | . . . 1 . . . 1 . . . Weapon 1 | . . . . . . . 1 . . . Parts Attached 168 | 8 1 5 45 8 3 3 17 15 3 60 Power 6 | 1 . 1 1 . . . . 1 . 2 Engine 3 | 1 . 1 1 . . . . . . . Core 3 | . . . . . . . . 1 . 2 Reactor . | . . . . . . . . . . . Propulsion 38 | 2 . 1 10 2 . . 4 7 . 12 Treads 33 | 2 . . 10 2 . . 4 5 . 10 Leg . | . . . . . . . . . . . Wheel 3 | . . 1 . . . . . . . 2 Hover . | . . . . . . . . . . . Flight 2 | . . . . . . . . 2 . . Utility 56 | 2 1 . 17 3 1 1 12 . . 19 Device 25 | 1 . . 7 2 . . 8 . . 7 Storage 3 | 1 1 . . . 1 . . . . . Processor 2 | . . . 1 . . . . . . 1 Hackware . | . . . . . . . . . . . Protection 26 | . . . 9 1 . 1 4 . . 11 Artifact . | . . . . . . . . . . . Weapon 68 | 3 . 3 17 3 2 2 1 7 3 27 Energy Gun 4 | . . . . . . . . . . 4 Energy Cannon 4 | . . . . . . . . . . 4 Ballistic Gun 30 | 3 . 1 10 2 2 1 1 3 1 6 Ballistic Cannon 8 | . . . . . . . . . . 8 Launcher 11 | . . 2 4 1 . 1 . 1 . 2 Special Weapon 4 | . . . . . . . . . 1 3 Impact Weapon 7 | . . . 3 . . . . 3 1 . Slashing Weapon . | . . . . . . . . . . . Piercing Weapon . | . . . . . . . . . . . Special Melee Weapon . | . . . . . . . . . . . Unidentified Prototypes 6 | . . . 2 . . . . 3 . 1 Corrupted Parts 1 | . . . . . . . . . . 1 System Corruption 2 | . . . . . . . . . . 2 Parts Lost 30 | . . 3 2 . . . . . . 25 Power 5 | . . 1 1 . . . . . . 3 Propulsion 13 | . . 1 . . . . . . . 12 Utility 7 | . . . 1 . . . . . . 6 Weapon 5 | . . 1 . . . . . . . 4 Highest Loss Streak 11 | . . 3 1 . . . . . . 11 To Critical Strikes 4 | . . . . . . . . . . 4 Average Slot Usage (%) 95 | . 100 93 97 100 77 100 99 100 99 89 Engine 6 | . 14 13 10 11 11 11 9 1 . . Core 3 | . . . . . . . . 7 9 8 Treads 26 | . 28 21 28 33 33 33 27 27 27 20 Wheel 1 | . . 5 3 . . . . . . 2 Device 9 | . 14 14 8 8 11 10 9 9 9 7 Storage 10 | . 14 14 11 11 11 11 9 9 9 9 Protection 13 | . . . 12 13 11 11 17 18 18 17 Energy Gun 1 | . . . . . . . . . . 4 Ballistic Gun 18 | . 28 15 20 21 . 21 27 22 23 8 Impact Weapon 1 | . . . 1 . . . . 4 2 4 Peak Build Rating 76 | 7 8 9 22 22 26 28 39 42 42 76 Average Rating 31 | 5 7 8 18 20 15 26 36 40 41 47 On Entrance 21 | . 7 8 8 21 20 26 28 39 42 38 Naked Turns . | . . . . . . . . . . . Heaviest Build 127 | 14 29 29 50 50 63 70 76 76 73 127 Greatest Support 62 | 40 40 40 60 60 60 60 62 62 62 62 Greatest Overweight (x) 42 | . . 1 3 . 1 1 1 1 1 42 Average Overweight (x) . | . . . . . . 1 1 1 1 3 Largest Inventory Capacity 20 | 8 15 15 15 15 20 20 20 20 20 20 Average Capacity 17 | 7 9 15 15 15 19 20 20 20 20 20 Most Carried 20 | 4 8 9 15 15 20 20 20 20 20 20 Average Carried 16 | 2 5 7 12 14 15 20 19 19 19 18 Final Capacity 20 | 8 15 15 15 15 20 20 20 20 20 20 Final Carried 20 | 4 8 6 15 15 20 20 20 20 20 13 Class Distribution -------------------- 29% | Mutant 21% | Scavenger-Mutant 17% | Tank 12% | Scavenger-Tank 11% | Commander-Mutant 5% | Commander-Tank Dominant Class ---------------- Mutant | -10/Materials Mutant | -10/Mines Mutant | -9/Materials Scavenger-Mutant | -9/Mines Scavenger-Mutant | -9/Exiles Scavenger-Mutant | -8/Mines Tank | -8/Materials Mutant | -8/Storage Commander-Tank | -8/Recycling Scavenger-Tank | -8/Scraptown Resources | -11 -10 -10 -9 -9 -9 -8 -8 -8 -8 -8 ----------- Run | Yrd Mat Min Mat Min Exi Min Mat Sto Rec Scr Matter Collected 5079 | 279 149 202 1007 220 . 131 626 427 127 1911 Remotely 1123 | . . . . . . . . . . 1123 Salvage Created 9136 | 50 356 179 1512 142 . 90 1018 765 302 4722 Parts 539 | 11 24 19 97 13 . 12 56 36 12 259 Haulers Intercepted 12 | . . . 6 . . . 3 3 . . Recyclers Shooed 3 | . . 1 1 . . . . 1 . . Parts Field Recycled . | . . . . . . . . . . . Retrieved Matter . | . . . . . . . . . . . Parts Self-Destructed . | . . . . . . . . . . . Prevented . | . . . . . . . . . . . Kills | -11 -10 -10 -9 -9 -9 -8 -8 -8 -8 -8 ------- Run | Yrd Mat Min Mat Min Exi Min Mat Sto Rec Scr Combat Hostiles Destroyed 172 | . 8 13 25 6 . 3 11 10 5 91 Guns 66 | . 8 1 20 3 . 2 11 8 4 9 Cannons 66 | . . . . . . . . . . 66 AOE 37 | . . 12 5 3 . 1 . 2 . 14 Classes Destroyed 23 | 1 3 2 2 1 . 1 2 . . 11 Worker 2 | . . . . . . 2 . . . . Builder 6 | . 1 . . 1 . 1 1 2 . . Tunneler 8 | 3 . 1 2 . . 1 1 . . . Hauler 12 | . . . 6 . . . 3 3 . . Recycler 7 | . . 1 2 . . . 2 1 1 . Operator 3 | . . . . . . . 2 . . 1 Watcher 11 | . 1 . 5 . . . 3 2 . . Swarmer 22 | . . 9 7 3 . 3 . . . . Grunt 36 | . 8 4 9 2 . . 6 5 1 1 Duelist 1 | . . . . 1 . . . . . . Sentry 21 | . . . 9 . . . 3 5 4 . Hunter 2 | . . . . . . . 2 . . . Bolteater 6 | . . . . . . . . . . 6 Federalist 4 | . . . . . . . . . . 4 Explorer 9 | . . . . . . . . . . 9 Ranger 4 | . . . . . . . . . . 4 Guru 10 | . . . . . . . . . . 10 Scientist 8 | . . . . . . . . . . 8 Scrapper 34 | . . . . . . . . . . 34 Elite 15 | . . . . . . . . . . 15 Zionite 1 | . . . . . . . . . . 1 Tinkerer 1 | . . . . . . . . . . 1 Thug 7 | . . . . . . . . . . 7 Savage 1 | . . . . . . . . . . 1 Best Kill Streak 16 | 2 2 7 6 4 . 4 3 7 3 16 Combat Bots Only 16 | . 2 6 5 3 . 3 3 3 3 16 Max Kills in Single Turn 3 | 1 1 3 3 3 . 2 2 2 1 2 Gunslinging 1 | . . . . . . . . . . 1 Exploded 3 | . . 3 3 2 . 1 . 1 . 2 Melee . | . . . . . . . . . . . Uniques/NPCs Destroyed 1 | . . . . . . . . . . 1 Triborg (-8/Scraptown) Combat | -11 -10 -10 -9 -9 -9 -8 -8 -8 -8 -8 -------- Run | Yrd Mat Min Mat Min Exi Min Mat Sto Rec Scr Hostile Shots Fired 676 | . 27 38 117 20 . 12 33 27 10 392 Missed 174 | . 4 11 38 2 . 3 7 10 3 96 Damage Taken 8658 | . 295 393 959 313 . 66 384 257 93 5898 Core 828 | . 76 46 148 . . . 28 15 . 515 Absorbed by Shields 145 | . . . 88 . . . . . . 57 Reduced by Siege Mode 159 | . . . . . . . . . . 159 Ignored by Resistances 364 | . . . . . . . 33 19 9 303 Regen/Repaired (Parts) 310 | . . . 175 . . . 135 . . . Core Remaining (%) 71 | 100 . 51 . . . 63 . . . . Volleys Fired 458 | 6 37 16 111 13 . 8 49 31 8 179 Largest 3 | 2 2 2 2 2 . 2 3 3 3 3 Hottest 178 | 40 40 40 46 46 . 46 69 71 71 178 Shots Fired 939 | 12 74 20 219 24 . 17 147 88 24 314 Gun 700 | 12 74 8 216 21 . 16 147 86 24 96 Cannon 200 | . . . . . . . . . . 200 Launcher 38 | . . 12 3 3 . 1 . 2 . 17 Special 1 | . . . . . . . . . . 1 Kinetic 770 | 12 74 8 216 21 . 16 147 86 24 166 Thermal 63 | . . . . . . . . . . 63 Explosive 38 | . . 12 3 3 . 1 . 2 . 17 Electromagnetic 67 | . . . . . . . . . . 67 Robot Hit Streak 24 | 3 11 7 11 11 . 8 14 16 24 19 Robot Miss Streak 4 | 1 3 1 4 2 . 1 1 3 1 3 Penetration Max 1 | . . . . . . . . . . 1 Secondary Targets 4 | . . . . 1 . . . . . 3 Max Gunslinging Chain 1 | . . . . 1 . . . . . 1 Autonomous 78 | . . . . . . . . . . 78 Shots Hit Robots 652 | 7 51 11 139 18 . 11 101 63 19 232 Core Hits 353 | 3 22 21 63 10 . 7 44 30 7 146 Critical Kills 3 | . . . 2 . . . . 1 . . Critical Parts Destroyed 3 | . . . 1 . . . . . 2 . Critical Strikes 30 | . . . 3 . . . . 1 2 24 Burn 6 | . . . . . . . . . . 6 Destroy 5 | . . . 3 . . . . 1 1 . Blast 16 | . . . . . . . . . . 16 Corrupt 2 | . . . . . . . . . . 2 Smash 1 | . . . . . . . . . 1 . Melee Attacks 23 | . . . 13 . . . . 9 1 . Impact 23 | . . . 13 . . . . 9 1 . Slashing . | . . . . . . . . . . . Piercing . | . . . . . . . . . . . Sneak Attacks 4 | . . . 1 . . . . 2 1 . Combat Hostiles 1 | . . . . . . . . . 1 . Follow-up Attacks . | . . . . . . . . . . . Damage Inflicted 22774 | 72 535 1079 2182 464 . 345 1703 1530 388 14476 Guns 7241 | 72 531 73 1859 256 . 158 1626 1025 296 1345 Cannons 11657 | . . . . . . . . . . 11657 Explosions 3471 | . . 1006 263 207 . 187 . 334 . 1474 Melee 292 | . . . 42 . . . . 168 82 . Ramming 113 | . 4 . 18 1 . . 77 3 10 . Kinetic 16851 | 72 531 73 1859 256 . 158 1626 1025 296 10955 Thermal 1021 | . . 38 . . . . . . . 983 Explosive 3335 | . . 968 263 207 . 187 . 334 . 1376 Electromagnetic 1162 | . . . . . . . . . . 1162 Impact 292 | . . . 42 . . . . 168 82 . Slashing . | . . . . . . . . . . . Piercing . | . . . . . . . . . . . Highest Corruption 5 | . . . 2 2 2 2 . 1 1 5 Average Corruption 2 | . . . 2 2 2 2 . 1 1 3 Corruption Purged . | . . . . . . . . . . . Corruption Blocked . | . . . . . . . . . . . Effects 103 | . . . 17 16 9 11 . 4 13 33 Message Errors 21 | . . . 4 3 2 1 . 1 5 5 Matter Fused 26 | . . . 3 3 3 3 . 1 3 10 Heat Flow Errors 14 | . . . 4 1 1 2 . 1 2 3 Energy Discharges 10 | . . . 1 2 2 1 . . . 4 Data Loss (minor) 18 | . . . 3 5 1 2 . 1 3 3 Data Loss (major) 3 | . . . 1 1 . . . . . 1 Misfires 5 | . . . . 1 . 2 . . . 2 Alerts 6 | . . . 1 . . . . . . 5 Overload Shots . | . . . . . . . . . . . Overflow Damage 1804 | . . 22 22 18 . 10 . 164 82 1486 Projectiles 1475 | . . . . . . . . . . 1475 Explosions 127 | . . 22 10 18 . 10 . 56 . 11 Melee 202 | . . . 12 . . . . 108 82 . Knockbacks 24 | . . . . . . . . . 1 23 Impact 1 | . . . . . . . . . 1 . Kinetic 23 | . . . . . . . . . . 23 Secondary . | . . . . . . . . . . . Self-Inflicted Damage 651 | . . 128 21 60 . . . . . 442 Shots 22 | . . 3 1 2 . . . . . 16 Rammed 16 | . . 1 2 1 . . 7 1 4 . Targets Rammed 19 | . 1 1 2 1 . . 9 1 4 . Kicked . | . . . . . . . . . . . Crushed 3 | . 1 . . . . . 2 . . . Highest Temperature 309 | . 36 10 252 196 235 258 265 172 223 309 Average Temperature 75 | . 11 5 42 43 118 115 50 50 87 99 Received Heat Transfer 2181 | . 180 75 345 66 . . 171 108 54 1182 Effects 5 | . . . . . . . 1 . . 4 Energy Bleed 3 | . . . . . . . 1 . . 2 Interference 2 | . . . . . . . . . . 2 Siege Activations 4 | . . . . . . . . . . 4 Total Turns 627 | . . . . . . . . . . 627 Longest Duration 560 | . . . . . . . . . . 560 Robots Corrupted 5 | . . . 1 . . . . 1 1 2 Combat Hostiles 3 | . . . . . . . . . 1 2 Parts Fried 12 | . . . 2 . . . . 1 1 8 Impact Corruptions 5 | . . . 1 . . . . 3 1 . Robots Melted . | . . . . . . . . . . . Combat Hostiles . | . . . . . . . . . . . Parts Melted 11 | . . . . . . . . . . 11 Heat Transferred 1896 | . . 50 . . . . . . . 1846 Parts Sabotaged . | . . . . . . . . . . . Parts Stolen 1 | . . . . . . . . . . 1 Parts Stripped . | . . . . . . . . . . . Power Chain Reactions 2 | . . . . . . . . . . 2 Alert | -11 -10 -10 -9 -9 -9 -8 -8 -8 -8 -8 ------- Run | Yrd Mat Min Mat Min Exi Min Mat Sto Rec Scr Peak Influence 591 | 15 127 252 591 300 . 112 162 264 172 . Initial 202 | . 9 2 72 202 . . 43 45 1 . Average 121 | 5 38 103 371 163 . 8 72 94 58 . Maximum Alert Level 2 | . . 1 2 1 . . . 1 . . Low Security (%) 81 | 100 100 97 21 62 . 100 100 88 100 . Level 1 8 | . . 2 20 37 . . . 11 . . Level 2 9 | . . . 57 . . . . . . . Level 3 . | . . . . . . . . . . . Level 4 . | . . . . . . . . . . . Level 5 . | . . . . . . . . . . . High Security . | . . . . . . . . . . . Max Security . | . . . . . . . . . . . Squads Dispatched 11 | . 2 1 2 1 . . 4 1 . . Investigation 2 | . . . . . . . 1 1 . . Extermination . | . . . . . . . . . . . Reinforcement 7 | . 2 . 2 1 . . 2 . . . Assault 1 | . . 1 . . . . . . . . Garrison 1 | . . . . . . . 1 . . . Intercept . | . . . . . . . . . . . Searches Triggered . | . . . . . . . . . . . Construction Impeded 1 | . . . . 1 . . . . . . Haulers Reinforced . | . . . . . . . . . . . Active Scanning Responses . | . . . . . . . . . . . Cargo Convoy Interrupts . | . . . . . . . . . . . Stealth | -11 -10 -10 -9 -9 -9 -8 -8 -8 -8 -8 --------- Run | Yrd Mat Min Mat Min Exi Min Mat Sto Rec Scr Distress Signals 11 | . 3 . 3 . . . 2 2 1 . Communications Jammed . | . . . . . . . . . . . Distress Signals . | . . . . . . . . . . . Times Spotted 206 | . 14 13 42 6 . 4 21 12 5 89 Peak Tracking Total 14 | . 2 6 5 3 . 3 3 4 3 14 Tactical Retreats 9 | . 1 1 1 . . 1 . 1 . 4 Traps | -11 -10 -10 -9 -9 -9 -8 -8 -8 -8 -8 ------- Run | Yrd Mat Min Mat Min Exi Min Mat Sto Rec Scr Traps Triggered 1 | . . . 1 . . . . . . . Indirectly . | . . . . . . . . . . . Trap Hack Attempts . | . . . . . . . . . . . Triggered . | . . . . . . . . . . . Disarmed . | . . . . . . . . . . . Reprogrammed . | . . . . . . . . . . . Reused . | . . . . . . . . . . . Traps Extracted . | . . . . . . . . . . . Installed . | . . . . . . . . . . . Triggered . | . . . . . . . . . . . Machines | -11 -10 -10 -9 -9 -9 -8 -8 -8 -8 -8 ---------- Run | Yrd Mat Min Mat Min Exi Min Mat Sto Rec Scr Machines Disabled 9 | . . 1 1 . . . 1 3 . 3 Max in Single Turn 1 | . . 1 1 . . . 1 1 . 1 Machines Repaired . | . . . . . . . . . . . Machines Dismantled 1 | . . . . . . . . . . 1 Machines Sabotaged . | . . . . . . . . . . . Overloaded Fab Kills . | . . . . . . . . . . . Hacking | -11 -10 -10 -9 -9 -9 -8 -8 -8 -8 -8 --------- Run | Yrd Mat Min Mat Min Exi Min Mat Sto Rec Scr Machines Accessed 47 | . 6 . 9 . 2 2 9 7 12 . Terminals 35 | . 6 . 7 . . 2 8 6 6 . Fabricators . | . . . . . . . . . . . Repair Stations 3 | . . . 2 . . . 1 . . . Recycling Units 6 | . . . . . . . . . 6 . Scanalyzers . | . . . . . . . . . . . Garrison Access 1 | . . . . . . . . 1 . . Total Hacks 138 | . 21 . 24 . 2 3 34 28 26 . Successful 76 | . 12 . 12 . 2 1 17 16 16 . Failed 62 | . 9 . 12 . . 2 17 12 10 . Catastrophic 6 | . . . . . . 2 3 . 1 . Database Lockouts . | . . . . . . . . . . . Manual 121 | . 21 . 17 . 1 3 30 22 27 . Terminals 115 | . 21 . 18 . . 3 30 25 18 . Fabricators . | . . . . . . . . . . . Repair Stations 10 | . . . 6 . . . 4 . . . Recycling Units 8 | . . . . . . . . . 8 . Scanalyzers . | . . . . . . . . . . . Garrison Access 3 | . . . . . . . . 3 . . Terminal Hacks 19 | . 3 . 1 . 2 1 3 7 2 . Record 1 | . . . . . 1 . . . . . Part Schematic 3 | . . . . . . . . 2 1 . Robot Analysis 6 | . 2 . . . . 1 . 3 . . Open Door 1 | . . . . . . . . 1 . . Branch Access Points 2 | . . . 1 . . . 1 . . . Terminal Index 1 | . . . . . . . . . 1 . Locate Traps 2 | . . . . . . . 1 1 . . Zone Layout 2 | . 1 . . . . . 1 . . . Derelict Proto ID Bank 1 | . . . . . 1 . . . . . Fabricator Hacks . | . . . . . . . . . . . Repair Station Hacks 8 | . . . 4 . . . 4 . . . Scan Component 4 | . . . 2 . . . 2 . . . Repair 4 | . . . 2 . . . 2 . . . Recycling Unit Hacks . | . . . . . . . . . . . Scanalyzer . | . . . . . . . . . . . Garrison Access Hacks . | . . . . . . . . . . . Unauthorized Hacks 49 | . 9 . 7 . . . 10 9 14 . Terminals 43 | . 9 . 7 . . . 10 9 8 . Assimilate 3 | . 1 . . . . . 1 1 . . Botnet 14 | . 3 . 1 . . . 4 3 3 . Operators 1 | . . . 1 . . . . . . . Skim 25 | . 5 . 5 . . . 5 5 5 . Fabricators . | . . . . . . . . . . . Repair Stations . | . . . . . . . . . . . Recycling Units 6 | . . . . . . . . . 6 . Tunnel 6 | . . . . . . . . . 6 . Scanalyzers . | . . . . . . . . . . . Garrison Access . | . . . . . . . . . . . Data Cores Recovered 1 | . . . . . . . 1 . . . Used . | . . . . . . . . . . . Hacking Detections 33 | . 6 . 8 . . 2 9 6 2 . Full Trace Events 2 | . . . . . . . 1 1 . . Feedback Events 1 | . . . . . . . . 1 . . Corruption 1 | . . . . . . . . 1 . . Feedback Blocked . | . . . . . . . . . . . Robot Schematics Acquired . | . . . . . . . . . . . Robots Built . | . . . . . . . . . . . Authchips . | . . . . . . . . . . . Time . | . . . . . . . . . . . Total Robot Build Rating . | . . . . . . . . . . . Part Schematics Acquired 4 | . . . . . . . . 2 1 1 Parts Built . | . . . . . . . . . . . Authchips . | . . . . . . . . . . . Time . | . . . . . . . . . . . Total Part Build Rating . | . . . . . . . . . . . Parts Repaired 4 | . . . 2 . . . 2 . . . Time 128 | . . . 52 . . . 76 . . . Parts Recycled . | . . . . . . . . . . . Recycled Matter . | . . . . . . . . . . . Retrieved Matter . | . . . . . . . . . . . Retrieved Components . | . . . . . . . . . . . Parts Scanalyzed . | . . . . . . . . . . . Part Schematics Acquired . | . . . . . . . . . . . Parts Damaged . | . . . . . . . . . . . Bothacking | -11 -10 -10 -9 -9 -9 -8 -8 -8 -8 -8 ------------ Run | Yrd Mat Min Mat Min Exi Min Mat Sto Rec Scr Used RIF Installer . | . . . . . . . . . . . Robots Hacked . | . . . . . . . . . . . Non-combat . | . . . . . . . . . . . Combat . | . . . . . . . . . . . Robot Hacks Applied . | . . . . . . . . . . . Relay Couplers Released . | . . . . . . . . . . . Fabnet Peak Effective % . | . . . . . . . . . . . Robots Rewired 6 | . . . . . . . . . 6 . Allies Hacked . | . . . . . . . . . . . Hacks Repelled . | . . . . . . . . . . . Allies | -11 -10 -10 -9 -9 -9 -8 -8 -8 -8 -8 -------- Run | Yrd Mat Min Mat Min Exi Min Mat Sto Rec Scr Total Allies 8 | . 1 1 . . . . . . 6 . Largest Group 6 | . 1 1 . . . . . . 6 6 Highest-Rated Group 137 | . 10 31 . . . . . . 137 137 Highest-Rated Ally 34 | . 10 31 . . . . . . 34 34 Total Orders 13 | . . . . . . . . . 2 11 STAY 5 | . . . . . . . . . 1 4 FOLLOW 7 | . . . . . . . . . 1 6 AID 1 | . . . . . . . . . . 1 Ally Attacks 19 | . . 3 . . . . . . . 16 Total Damage 1059 | . . 63 . . . . . . . 996 Kills 5 | . . . . . . . . . . 5 Allies Corrupted . | . . . . . . . . . . . Allies Melted . | . . . . . . . . . . . Intel | -11 -10 -10 -9 -9 -9 -8 -8 -8 -8 -8 ------- Run | Yrd Mat Min Mat Min Exi Min Mat Sto Rec Scr Robot Analysis Total 6 | . 2 . . . . 1 . 3 . . Derelict Logs Recovered 2 | . . 1 . 1 . . . . . . Drone Launches . | . . . . . . . . . . . Drone Recoveries . | . . . . . . . . . . . Exploration | -11 -10 -10 -9 -9 -9 -8 -8 -8 -8 -8 ------------- Run | Yrd Mat Min Mat Min Exi Min Mat Sto Rec Scr Turns Passed 16471 | 156 1511 670 1863 1056 845 1082 2128 1776 1347 4037 Spaces Moved 6214 | 83 597 415 817 626 519 439 582 544 499 1093 Core 11 | 8 . . . . . . . . . 3 Treads 5335 | 75 597 187 608 626 519 439 582 544 499 659 Legs . | . . . . . . . . . . . Wheels 868 | . . 228 209 . . . . . . 431 Hover . | . . . . . . . . . . . Flight . | . . . . . . . . . . . Fastest Speed 50 | 50 160 115 115 160 160 240 238 238 241 160 Average Speed 195 | 149 160 135 150 160 160 240 240 239 241 225 Slowest Speed 2150 | 160 160 160 160 160 240 240 243 250 241 2150 Overloaded Moves . | . . . . . . . . . . . Propulsion Burnouts . | . . . . . . . . . . . Robots Hopped . | . . . . . . . . . . . Cave-ins Triggered . | . . . . . . . . . . . Exploration Rate (%) 71 | 4 80 82 80 98 70 96 57 75 89 53 Regions Visited 10 Branch Regions 7 Pre-discovered Areas 13 | . 1 1 1 1 1 . . 1 7 . Known Exits Taken 6 | . . 1 1 . . 1 1 1 1 . Unknown Exits Taken 4 | 1 1 . . 1 1 . . . . . Scrap Searched 7 | . . 1 . 1 . 1 . . . 4 Spaces Dug 38 | . . 11 23 . . . . 4 . . Terrain Destroyed 251 | . . 103 47 38 . 8 . 14 . 41 Melee 15 | . . . 11 . . . . 4 . . Projectile 39 | . . . . . . . . . . 39 AOE 197 | . . 103 36 38 . 8 . 10 . 2 Terrain Rammed . | . . . . . . . . . . . Walls Destroyed . | . . . . . . . . . . . Machines Disabled . | . . . . . . . . . . . Actions | -11 -10 -10 -9 -9 -9 -8 -8 -8 -8 -8 --------- Run | Yrd Mat Min Mat Min Exi Min Mat Sto Rec Scr Total 9693 | 100 1087 502 1204 655 536 452 1200 950 626 2381 Wait 2563 | . 443 64 191 4 . 3 535 337 16 970 Move 6204 | 82 596 414 816 625 518 438 581 543 498 1093 Hop . | . . . . . . . . . . . Pick Up 58 | 4 6 1 12 1 7 . 3 3 . 21 Fast Attach 36 | 7 . . 8 . . . 3 5 . 13 Attach 37 | . . 2 3 . 2 . 2 2 1 25 Detach 18 | . . . 2 . . . . . 2 14 Swap 95 | 1 1 3 34 8 1 3 12 8 2 22 Drop 59 | . 3 1 12 3 8 . 6 11 1 14 Fire 458 | 6 37 16 111 13 . 8 49 31 8 179 Melee 23 | . . . 13 . . . . 9 1 . Ram 1 | . . . 1 . . . . . . . Kick . | . . . . . . . . . . . Crush 18 | . 1 1 1 1 . . 9 1 4 . Escape Stasis . | . . . . . . . . . . . Rewire 93 | . . . . . . . . . 93 . Trap . | . . . . . . . . . . . Miscellaneous 30 | . . . . . . . . . . 30 Route ------- -11/Scrapyard -10/Materials (discovered 6 exits: *Mat x3 / [*Min x2] / Sub) -10/Mines (discovered 2 exits: *Mat x2) -9/Materials (discovered 5 exits: *Mat x3 / *Min x2) -9/Mines (discovered 4 exits: *Mat x2 / *Exi / [*Zio]) -9/Exiles (discovered 2 exits: *Min x2) -8/Mines (discovered 2 exits: *Mat x2) -8/Materials (discovered 5 exits: *Fac x3 / *Sto x2) -8/Storage (discovered 2 exits: Fac / *Rec) -8/Recycling (discovered 2 exits: *Fac / *Scr) -8/Scraptown (discovered 2 exits: *Fac x2) History --------- Turn | Location | Event 5 | -11/Scrapyard | Discovered new exit (range 15) 157 | -11/Scrapyard | Entered Materials 311 | -10/Materials | Build established: Mutant 329 | -10/Materials | Discovered new exit (range 10) 596 | -10/Materials | Discovered new exit (range 8) 997 | -10/Materials | Discovered new exit (range 15) 1238 | -10/Materials | Discovered new exit (range 7) 1337 | -10/Materials | Identified exit to Subcaves 1337 | -10/Materials | Identified exit to Materials 1405 | -10/Materials | Learned 2 Mines zone layouts 1461 | -10/Materials | Learned Storage stockpile data 1505 | -10/Materials | Learned 4 Subcaves zone layouts 1562 | -10/Materials | Learned Storage non-interactive machine intel 1634 | -10/Materials | Learned location of 1 exit from Storage 1668 | -10/Materials | Entered Mines 1853 | -10/Mines | Met a Derelict testing a Signal Generator 1868 | -10/Mines | Found Signal Generator 2078 | -10/Mines | Lost 3 parts (1p1n1w) 2098 | -10/Mines | Discovered exit to Materials (range 14) 2317 | -10/Mines | Discovered exit to Materials (range 8) 2338 | -10/Mines | Entered Materials 2338 | -9/Materials | Evolved 2 slots: Propulsion x1, Utility x1 2379 | -9/Materials | Repaired Lgt. Treads 2426 | -9/Materials | Repaired Assault Rifle 2928 | -9/Materials | Discovered new exit (range 11) 2932 | -9/Materials | Discovered new exit (range 10) 3223 | -9/Materials | Identified exit to Mines 3412 | -9/Materials | Discovered new exit (range 14) 3747 | -9/Materials | Loaded intel: 12 trap records 3788 | -9/Materials | Learned Storage emergency access door positions 3818 | -9/Materials | Learned 2 Storage zone layouts 3846 | -9/Materials | Learned 2 Storage zone layouts 3868 | -9/Materials | Identified exit to Materials 3868 | -9/Materials | Learned location of 1 exit from Materials 3899 | -9/Materials | Learned Storage interactive machine intel 4123 | -9/Materials | Build established: Scavenger-Mutant 4201 | -9/Materials | Entered Mines 4208 | -9/Mines | Met a Derelict bent on vengeance 4208 | -9/Mines | Joined a pair of Derelicts in attacking an 0b10 outpost 4291 | -9/Mines | Discovered exit to Materials (range 14) 4811 | -9/Mines | A Derelict revealed a hidden shortcut to a safe place 5065 | -9/Mines | Discovered exit to Materials (range 12) 5250 | -9/Mines | Deemed a non-threat by the Exiles lab entrance 5250 | -9/Mines | Discovered new exit (range 5) 5257 | -9/Mines | Entered Exiles 5279 | -9/Exiles | Discovered new exit (range 15) 5298 | -9/Exiles | Met 8R-AWN 5321 | -9/Exiles | Met EX-HEX 5390 | -9/Exiles | Met EX-DEC 5470 | -9/Exiles | Learned location of Zion (-7) 5516 | -9/Exiles | Discovered new exit (range 14) 5847 | -9/Exiles | Met EX-BIN 5868 | -9/Exiles | Aligned with FarCom system 5870 | -9/Exiles | Given EX-Vault access code 5910 | -9/Exiles | Opened EX-Vault 5921 | -9/Exiles | Found AWS/Autocannon 5932 | -9/Exiles | Found Flying Fortress v7 5940 | -9/Exiles | Found 0b10 Alert Chip 5976 | -9/Exiles | Warned to stay clear of 0b10 Research branches 6102 | -9/Exiles | Stole three prototypes: Flying Fortress v7, 0b10 Alert Chip, AWS/Autocannon 6102 | -9/Exiles | Entered Mines 6102 | -8/Mines | Discovered exit to Materials (range 13) 7134 | -8/Mines | Discovered exit to Materials (range 8) 7184 | -8/Mines | Entered Materials 7184 | -8/Materials | Evolved 2 slots: Utility x1, Weapon x1 7185 | -8/Materials | Identified exit to Factory 7680 | -8/Materials | Garrison activated, responded to threat 7717 | -8/Materials | Build established: Tank 8062 | -8/Materials | Learned location of 1 exit from Recycling 8147 | -8/Materials | Learned 8 Factory zone layouts 8212 | -8/Materials | Learned Factory security intel 8233 | -8/Materials | Learned location of 3 exits from Factory 8265 | -8/Materials | Learned Storage trap positions 8534 | -8/Materials | Identified exit to Storage 9129 | -8/Materials | Repaired Reactive Plating 9169 | -8/Materials | Repaired Hrd. Medium Armor Plating 9312 | -8/Materials | Entered Storage 9314 | -8/Storage | Identified exit to Recycling 9316 | -8/Storage | Loaded intel: 7 trap records 9317 | -8/Storage | Loaded intel: 27 non-interactive machine locations 9318 | -8/Storage | Loaded intel: 15 interactive machine locations 9922 | -8/Storage | Build established: Mutant 10609 | -8/Storage | Build established: Tank 10911 | -8/Storage | Used back door to open Recycling access 10930 | -8/Storage | Learned location of 1 exit from Extension 10996 | -8/Storage | Learned 2 Storage zone layouts 11015 | -8/Storage | Learned location of 1 exit from Lower Caves 11022 | -8/Storage | Learned location of Lower Caves (-7) 11023 | -8/Storage | Learned location of 1 exit from Storage 11032 | -8/Storage | Learned location of 2 exits from Factory 11052 | -8/Storage | Learned location of 1 exit from Recycling 11088 | -8/Storage | Entered Recycling 11089 | -8/Recycling | Identified exit to Scraptown 11089 | -8/Recycling | Identified exit to Factory 11160 | -8/Recycling | Build established: Mutant 11681 | -8/Recycling | Build established: Commander-Tank 12112 | -8/Recycling | Learned 8 Factory zone layouts 12253 | -8/Recycling | Learned 8 Factory zone layouts 12299 | -8/Recycling | Learned 2 Storage zone layouts 12368 | -8/Recycling | Scanned before Scraplab entrance 12401 | -8/Recycling | Entered Scraplab 12416 | -8/Recycling | Learned location of 2 exits from Factory 12435 | -8/Recycling | Entered Scraptown 12435 | -8/Scraptown | Accompanied by 6 allies 12435 | -8/Scraptown | System corruption cleaned by C-Scrubber 12631 | -8/Scraptown | Build established: Commander-Mutant 12783 | -8/Scraptown | Visited IN-MT5's Study 12821 | -8/Scraptown | Visited Shadow of the Wyrm 12853 | -8/Scraptown | Visited Fellowship of the Rings 12889 | -8/Scraptown | Visited Comm Corps 12915 | -8/Scraptown | Visited The Evicted 12930 | -8/Scraptown | Visited Cave Peace 12959 | -8/Scraptown | Visited Cyclists 13410 | -8/Scraptown | Heard Great Nut preacher, LISTEN AND RECITE! 14239 | -8/Scraptown | Attacked by Scraptown defenders 14280 | -8/Scraptown | Destroyed Triborg 14287 | -8/Scraptown | Found Prototype Ballistic Cannon 14290 | -8/Scraptown | Lost 6 allies 14296 | -8/Scraptown | Found Tri-treads 14303 | -8/Scraptown | Identified Siege Cannon 14311 | -8/Scraptown | Lost 5 parts (1p2n2u) 14319 | -8/Scraptown | Destroyed 14 combat bots 14398 | -8/Scraptown | Lost 3 parts (1n2u) 14428 | -8/Scraptown | Destroyed 9 combat bots 14434 | -8/Scraptown | Found Tri-treads 14721 | -8/Scraptown | Build established: Scavenger-Tank 15189 | -8/Scraptown | Destroyed 9 combat bots 15293 | -8/Scraptown | AWS/Autocannon suddenly broke down 15499 | -8/Scraptown | Core integrity fell below 50% 15858 | -8/Scraptown | System corruption cleaned by C-Scrubber 16398 | -8/Scraptown | Core integrity fell below 20% 16472 | -8/Scraptown | Destroyed by B0-WXZ(h) with Bolt Gun Last Messages --------------- 16462_ JI-Q9B(g) destroyed. 16464_ Penetrated by Bolt. 16464_ Ovr. Treads destroyed. 16464_ Bolt penetrates UFD HQ Gate. 16465_ WKKSL=BZHPHJZYT 16470_ Penetrated by Bolt. 16471_ Siege Cannon recoils violently, damaging core (-6). 16471_ Violent recoil rips off Mak. Light Armor Plating. 16471_ Siege Slug penetrates UFD HQ Gate. 16472_ Penetrated by Bolt. Map ----- +----------------------------------------------------+ | ???# " ##"X *%!"#????????????????????????? | | ????? #""" %= "#????????????????????????? | | ??????? #"" #????????????????????????? | | ######### ###"""""#"#!"###???????????????????????? | | !% #???????????????????????? | | ! %!#???????????????????????? | | % !% #???????????????????????? | | % =!!* #???????????????????????? | | % !% =/! #???????????????????????? | | ### ###########%=!!*% #???????????????????????? | | ?" ????????#%%=!=%= #???????????????????????? | | """ "??????#!%!=!!=! #???????????????????????? | | "" " ""???##%!! %*% #???????????????????????? | | "" " "#??#%!% %== #???????????????????????? | | " " "#??#=%!%!%! #???????????????????????? | | " " "#??#!===*= ###?????????????????????? | | " """ "#?###=!] "#"#???????????????????? | | " "" """#?# #; """#???????????????????? | | "" " " ""#??# ; %= ""###???????????????????? | | """""?""?????##; *!%! ###????????? ""???????? | | ###?#?????????## !*[%!* #########"! ""#??????? | | ?????????????### = [==! [ =[ hj%[&%! "#??????? | | ????????????## ; !=!* !%"="![= ""#??????? | | ????????????# ## ! = ! ! *""""???? ""#??????? | | ##??######### ; *! ! %] "??????????"???????? | | "####[=%!=;;;;;;=&![ @!=[""??????????????????? | | %==%!%=== // =%![ "??????????????????? | | !*[!%=[!! ! [*= ! ""??????????????????? | | * =%!%*%=![!!% * ! *! "???????????????????? | | ! =%*!%!!=!! * ! == "???????????????????? | | [%!!!! ===%* "???????????????????? | | = %%!%=[/= #"???????????????????? | | /%=*%!!== #????????????????????? | | !%%%=[ ! c #????????????????????? | | " % =!%%##!#####; ### ####????????????????????? | | %!#### =% # #???????????????????????? | | ##??#" """# #???????????????????????? | | #???#" " # #???????????????????????? | | ###???#"" " # #???????????????????????? | | #?????#""" " # #???????????????????????? | | "#?????#"" " # #???????????????????????? | | " ##?????#" "### #???????????????????????? | | # #??????#" " # #???????????????????????? | | #####??????#"""""""### #???????????????????????? | | ???????????#########?# #???????????????????????? | | ?????????????????????# #???????????????????????? | | ??????????????######## #???????????????????????? | | ??????????????"""""""" #???????????????????????? | | ?????????????""" """"" #???????????????????????? | | ?????##?????""" " "" #???????????????????????? | +----------------------------------------------------+ Best States ------------- Heat Dissipation 45 Energy Generation 14 Energy Capacity 900 Matter Stores 300 Matter Capacity 300 Sight Range 16 Terrain Scan Density 10 Armor Coverage 900 Resistance: KI 20 Weapon Cycling 15 Evasion (%) 40 Targeting Accuracy 6 Recoil Reduction 3 Item Schematics ----------------- Adv. Signal Interpreter | -8/Storage | Hacked Core Analyzer | -8/Storage | Hacked Hcp. Storage Unit | -8/Recycling | Hacked IN-MT5's Pitchfork "Insurrection" | -8/Scraptown | Archive Robot Schematics ------------------ None Fabricated ------------ Nothing Alien Tech Used ----------------- None Achievements -------------- None Challenges ------------ None Game ------ Seed AutogunExpertBrace Manual? 0 Play Time 01:27:59 Cumulative 639.3 hours Start 2024.10.13 @ 12:10:40 End 2024.10.13 @ 14:05:23 Sessions 1 Manual Loads 0 Difficulty Rogue Special Mode None Game No. 694 Rogue 607 Adventurer 87 Explorer 0 Win Type - Total 38 Types 8/0/24/1/1/1/3/0/0 Lore% 95 Gallery% 93 Achievement% 80 Wizard Run 0 Options --------- Layout 0 ASCII 0 Keyboard 1 Movement Numpad Keybinds 0 Fullscreen 2 Font 18/SmallcapsGlow Map View 76x50 Zoom Use 0% Tactical HUD 1 Map Filters NONE Filters NONE Steam 1 RUN: d86b7c17-0d15-4e6f-9a0d-4d4305523b41